fUST/lending_fUST_20250809
["ID","MTS","AMOUNT","RATE_DAILY","PERIOD"]
[378056446,1754708153025,172.450423,0.00020187,2]
[378056448,1754708209223,185.33299434,0.00021117,2]
[378056449,1754708211256,741.33197736,0.00021117,2]
[378056450,1754708213236,1667.99694905,0.00021117,2]
[378056451,1754708214984,2965.32790942,0.00021117,2]
[378056452,1754708225246,5000.0,0.0002145,2]
[378056453,1754708241084,154.79842316,0.0002145,2]
[378056454,1754708241106,4845.20157684,0.0002145,2]
[378056455,1754708257093,5000.0,0.0002145,2]
[378056456,1754708273955,5000.0,0.0002145,2]
[378056457,1754708290365,5000.0,0.0002145,2]
[378056458,1754708291677,12454.79842316,0.00020958,2]
[378056459,1754708291703,12445.20157684,0.00020958,2]
[378056460,1754708292552,257.37685136,0.000199,2]
[378056461,1754708311925,5000.0,0.0002145,2]
[378056462,1754708327235,5000.0,0.0002145,2]
[378056463,1754708342833,5000.0,0.0002145,2]
[378056464,1754708359236,4597.4215718,0.0002145,2]
[378056465,1754708359258,402.5784282,0.0002145,2]
[378056466,1754708374774,5000.0,0.0002145,2]
[378056467,1754708431092,732.90478158,0.00021297,2]
[378056468,1754708431485,180.372548,0.00020932,2]
[378056469,1754708468088,17827.862918,0.00020957,2]
[378056470,1754708475865,248.79762302,0.000199,2]
[378056471,1754708566237,391.06760392,0.0001935,2]
[378056472,1754708588355,412.38288072,0.00021117,2]
[378056473,1754708648865,240.5043689,0.000199,2]
[378056474,1754708649301,1545.8957225,0.00021076,2]
[378056475,1754708713496,3195.3882415,0.00020918,2]
[378056476,1754708720282,1494.25,0.0002145,2]
[378056477,1754708732488,439.74286894,0.00021208,2]
[378056478,1754708827027,188.25201472,0.000199,2]
[378056479,1754708827055,44.23554198,0.000199,2]
[378056480,1754708867426,260.71173595,0.0001935,2]
[378056482,1754708901293,9412.98,0.00031651,30]
[378056483,1754708926857,1612.45066379,0.00021117,2]
[378056484,1754708928801,380.2129184,0.00021117,2]
[378056485,1754708930390,1520.85167361,0.00021117,2]
[378056486,1754708932218,3421.91626562,0.00021117,2]
[378056487,1754708934096,6077.32328773,0.00021117,2]
[378056488,1754708970320,584.75627799,0.00021117,2]
[378056489,1754708972065,2339.02511196,0.00021117,2]
[378056490,1754708975062,5257.54369541,0.00021117,2]
[378056491,1754708976715,390.55444815,0.00021117,2]
[378056492,1754708978910,1562.21779258,0.00021117,2]
[378056493,1754708981056,3511.47504327,0.00021117,2]
[378056494,1754708999495,224.73797138,0.000199,2]
[378056521,1754709031917,-167.64905006,0.00021478,2]
[378056523,1754709031927,-148.83545769,0.00021655,2]
[378056529,1754709031976,-75.90251367,0.00021655,2]
[378056531,1754709031986,-300.0,0.00021863,2]
[378056533,1754709031995,-300.0,0.00021863,2]
[378056535,1754709032005,-177.43756659,0.00021863,2]
[378056537,1754709032017,-122.56243341,0.00021863,2]
[378056539,1754709032026,-300.0,0.00021863,2]
[378056541,1754709032036,-1200.0,0.00021863,2]
[378056543,1754709032048,-2649.56462807,0.00021864,2]
[378056546,1754709032059,-1759.0,0.00021864,2]
[378056547,1754709032070,-1759.0,0.00021864,2]
[378056549,1754709032079,-325.0,0.00021864,2]
[378056551,1754709032088,-325.0,0.00021864,2]
[378056553,1754709032097,-325.0,0.00021864,2]
[378056555,1754709032107,-325.0,0.00021864,2]
[378056557,1754709032116,-325.0,0.00021864,2]
[378056559,1754709032126,-325.0,0.00021864,2]
[378056561,1754709032136,-325.0,0.00021864,2]
[378056563,1754709032145,-325.0,0.00021864,2]
[378056565,1754709032155,-325.0,0.00021864,2]
[378056567,1754709032164,-325.0,0.00021864,2]
[378056568,1754709032173,-325.0,0.00021864,2]
[378056569,1754709032183,-325.0,0.00021864,2]
[378056570,1754709032192,-325.0,0.00021864,2]
[378056571,1754709032202,-325.0,0.00021864,2]
[378056572,1754709032211,-325.0,0.00021864,2]
[378056573,1754709032222,-325.0,0.00021864,2]
[378056574,1754709032235,-325.0,0.00021864,2]
[378056575,1754709032245,-325.0,0.00021864,2]
[378056576,1754709032255,-325.0,0.00021864,2]
[378056577,1754709032264,-325.0,0.00021864,2]
[378056578,1754709032278,-325.0,0.00021864,2]
[378056579,1754709032287,-325.0,0.00021864,2]
[378056580,1754709032297,-325.0,0.00021864,2]
[378056581,1754709032306,-325.0,0.00021864,2]
[378056582,1754709032315,-325.0,0.00021864,2]
[378056583,1754709032324,-458.89140583,0.00021864,2]
[378056584,1754709032333,-325.0,0.00021864,2]
[378056585,1754709032343,-325.0,0.00021864,2]
[378056586,1754709032352,-422.23166794,0.00021864,2]
[378056587,1754709032362,-325.0,0.00021864,2]
[378056588,1754709032371,-325.0,0.00021864,2]
[378056589,1754709032381,-325.0,0.00021864,2]
[378056590,1754709032391,-325.0,0.00021864,2]
[378056591,1754709032400,-325.0,0.00021864,2]
[378056592,1754709032409,-325.0,0.00021864,2]
[378056593,1754709032419,-487.13639143,0.00021954,2]
[378056594,1754709032428,-460.0,0.00021954,2]
[378056595,1754709032437,-460.0,0.00021954,2]
[378056596,1754709032447,-460.0,0.00021954,2]
[378056597,1754709032457,-1266.7,0.00021954,2]
[378056598,1754709032466,-460.0,0.00021954,2]
[378056599,1754709032476,-460.0,0.00021954,2]
[378056600,1754709032486,-484.32657201,0.00021954,2]
[378056601,1754709032495,-460.0,0.00021954,2]
[378056602,1754709032505,-460.0,0.00021954,2]
[378056603,1754709032515,-923.81,0.00021954,2]
[378056604,1754709032524,-650.65,0.00021954,2]
[378056605,1754709032534,-460.0,0.00021954,2]
[378056606,1754709032543,-1140.2,0.00021954,2]
[378056607,1754709032553,-460.0,0.00021954,2]
[378056608,1754709032562,-460.0,0.00021956,2]
[378056609,1754709032571,-450.18844369,0.00021956,2]
[378056610,1754709032581,-511.27998558,0.00021956,2]
[378056611,1754709032590,-200.58263442,0.00021956,2]
[378056612,1754709032600,-460.0,0.00021956,2]
[378056613,1754709032609,-493.10743087,0.00021956,2]
[378056614,1754709032620,-460.0,0.00021956,2]
[378056615,1754709032630,-488.50395581,0.00021956,2]
[378056616,1754709032640,-460.0,0.00021956,2]
[378056617,1754709032650,-460.0,0.00021956,2]
[378056618,1754709032659,-460.0,0.00021956,2]
[378056619,1754709032669,-460.0,0.00021956,2]
[378056620,1754709032679,-460.0,0.00021956,2]
[378056621,1754709032689,-476.83307238,0.00021956,2]
[378056622,1754709032698,-460.0,0.00021956,2]
[378056623,1754709032719,-460.0,0.00021956,2]
[378056624,1754709032733,-460.0,0.00021956,2]
[378056625,1754709032743,-460.0,0.00021956,2]
[378056626,1754709032752,-460.0,0.00021956,2]
[378056627,1754709032762,-460.0,0.00021956,2]
[378056628,1754709032771,-460.0,0.00021956,2]
[378056629,1754709032780,-460.0,0.00021956,2]
[378056630,1754709032790,-460.0,0.00021956,2]
[378056631,1754709032799,-2224.98,0.00021956,2]
[378056632,1754709032809,-460.0,0.00021956,2]
[378056633,1754709032818,-486.14,0.00021956,2]
[378056634,1754709032827,-608.28,0.00021956,2]
[378056635,1754709032837,-460.0,0.00021956,2]
[378056636,1754709032847,-460.0,0.00021956,2]
[378056637,1754709032856,-541.20482844,0.00021957,2]
[378056638,1754709032865,-460.0,0.00021957,2]
[378056639,1754709032874,-477.3729841,0.00021957,2]
[378056640,1754709032884,-460.0,0.00021957,2]
[378056641,1754709032893,-460.0,0.00021957,2]
[378056642,1754709032902,-460.0,0.00021957,2]
[378056643,1754709032912,-460.0,0.00021957,2]
[378056644,1754709032922,-460.0,0.00021957,2]
[378056645,1754709032931,-460.0,0.00021957,2]
[378056646,1754709032940,-460.0,0.00021957,2]
[378056647,1754709032949,-460.0,0.00021957,2]
[378056648,1754709032959,-460.0,0.00021957,2]
[378056649,1754709032968,-460.0,0.00021957,2]
[378056650,1754709032977,-460.0,0.00021957,2]
[378056651,1754709032986,-496.69664594,0.00021957,2]
[378056652,1754709032995,-473.23326017,0.00021957,2]
[378056653,1754709033005,-460.0,0.00021957,2]
[378056654,1754709033014,-460.0,0.00021957,2]
[378056655,1754709033023,-465.92787634,0.00021957,2]
[378056656,1754709033033,-460.0,0.00021957,2]
[378056657,1754709033043,-460.0,0.00021957,2]
[378056658,1754709033053,-460.0,0.00021957,2]
[378056659,1754709033062,-460.0,0.00021957,2]
[378056660,1754709033200,-475.27628312,0.00021957,2]
[378056661,1754709033214,-460.0,0.00021957,2]
[378056662,1754709033224,-460.0,0.00021957,2]
[378056663,1754709033232,-510.58651523,0.00021957,2]
[378056664,1754709033242,-460.0,0.00021957,2]
[378056665,1754709033251,-460.0,0.00021957,2]
[378056666,1754709033262,-225.82892987,0.00021957,2]
[378056667,1754709033275,-460.0,0.00021957,2]
[378056668,1754709033285,-460.0,0.00021957,2]
[378056669,1754709033294,-460.0,0.00021957,2]
[378056670,1754709033303,-532.60303881,0.00021957,2]
[378056671,1754709033315,-559.19,0.00021957,2]
[378056672,1754709033324,-177.79741401,0.00021957,2]
[378056673,1754709033334,-460.0,0.00021957,2]
[378056674,1754709033344,-460.0,0.00021957,2]
[378056675,1754709033354,-460.0,0.00021957,2]
[378056676,1754709033364,-460.0,0.00021957,2]
[378056677,1754709033374,-460.0,0.00021957,2]
[378056678,1754709033383,-460.0,0.00021957,2]
[378056679,1754709033393,-460.0,0.00021957,2]
[378056680,1754709033403,-748.46,0.00021957,2]
[378056681,1754709033413,-460.0,0.00021957,2]
[378056682,1754709033422,-460.0,0.00021957,2]
[378056683,1754709033432,-460.0,0.00021957,2]
[378056684,1754709033446,-460.0,0.00021957,2]
[378056685,1754709033457,-460.0,0.00021957,2]
[378056686,1754709033467,-460.0,0.00021957,2]
[378056687,1754709033476,-460.0,0.00021957,2]
[378056688,1754709033486,-460.0,0.00021957,2]
[378056689,1754709033495,-460.0,0.00021957,2]
[378056690,1754709033507,-469.20784166,0.00021957,2]
[378056691,1754709033517,-460.0,0.00021957,2]
[378056692,1754709033527,-460.0,0.00021957,2]
[378056693,1754709033537,-475.13322173,0.00021957,2]
[378056694,1754709033547,-460.0,0.00021957,2]
[378056695,1754709033559,-460.0,0.00021957,2]
[378056696,1754709033577,-460.0,0.00021957,2]
[378056697,1754709033588,-460.0,0.00021957,2]
[378056698,1754709033600,-460.0,0.00021957,2]
[378056699,1754709033612,-460.0,0.00021957,2]
[378056700,1754709033624,-460.0,0.00021957,2]
[378056701,1754709033639,-332.9916298,0.00021957,2]
[378056702,1754709033650,-460.0,0.00021957,2]
[378056703,1754709033661,-476.49252751,0.00021957,2]
[378056704,1754709033672,-460.0,0.00021959,2]
[378056705,1754709033684,-460.0,0.00021959,2]
[378056706,1754709033695,-681.3,0.00021959,2]
[378056707,1754709033706,-460.0,0.00021959,2]
[378056708,1754709033719,-460.0,0.00021959,2]
[378056709,1754709033729,-460.0,0.00021959,2]
[378056710,1754709033739,-160.85698884,0.00021959,2]
[378056711,1754709033749,-467.37402477,0.00021959,2]
[378056712,1754709033759,-500.0,0.00021973,2]
[378056713,1754709033770,-508.18444506,0.00021973,2]
[378056714,1754709033781,-500.0,0.00021973,2]
[378056715,1754709033791,-315.18594163,0.00021973,2]
[378056716,1754709033801,-506.57853464,0.00021973,2]
[378056717,1754709033811,-473.97,0.00022,2]
[378056718,1754709033822,-1014.02694899,0.00022019,2]
[378056719,1754709033832,-540.71374114,0.00022024,2]
[378056720,1754709033842,-7510.89515236,0.00022065,2]
[378056721,1754709033852,-1014.02694896,0.00022102,2]
[378056722,1754709033862,-174.57,0.00022109,10]
[378056723,1754709033872,-872.87,0.00022109,10]
[378056724,1754709033886,-3833.72,0.00022118,2]
[378056725,1754709033895,-151.0,0.00022119,2]
[378056726,1754709033905,-8591.8268037,0.00022119,2]
[378056727,1754709033915,-151.0,0.00022119,2]
[378056728,1754709033925,-151.0,0.00022119,2]
[378056729,1754709033934,-151.0,0.00022119,2]
[378056730,1754709033944,-151.0,0.00022119,2]
[378056731,1754709033953,-151.0,0.00022119,2]
[378056732,1754709033962,-151.0,0.00022119,2]
[378056733,1754709033971,-151.0,0.00022119,2]
[378056734,1754709033981,-151.0,0.00022119,2]
[378056735,1754709033991,-151.0,0.00022119,2]
[378056736,1754709034000,-500.0,0.00022119,2]
[378056737,1754709034009,-151.0,0.00022119,2]
[378056738,1754709034018,-151.0,0.00022119,2]
[378056739,1754709034028,-500.0,0.00022119,2]
[378056740,1754709034038,-151.0,0.00022119,2]
[378056741,1754709034047,-151.0,0.00022119,2]
[378056742,1754709034057,-151.0,0.00022119,2]
[378056743,1754709034066,-151.0,0.00022119,2]
[378056744,1754709034076,-500.0,0.00022119,2]
[378056745,1754709034085,-151.0,0.00022119,2]
[378056746,1754709034094,-151.0,0.00022119,2]
[378056747,1754709034104,-500.0,0.00022119,2]
[378056748,1754709034115,-151.0,0.00022119,2]
[378056749,1754709034125,-151.0,0.00022119,2]
[378056750,1754709034136,-500.0,0.00022119,2]
[378056751,1754709034146,-151.0,0.00022119,2]
[378056752,1754709034155,-151.0,0.00022119,2]
[378056753,1754709034165,-500.0,0.00022119,2]
[378056754,1754709034175,-151.0,0.00022119,2]
[378056755,1754709034184,-151.0,0.00022119,2]
[378056756,1754709034195,-500.0,0.00022119,2]
[378056757,1754709034205,-151.0,0.00022119,2]
[378056758,1754709034215,-151.0,0.00022119,2]
[378056759,1754709034225,-500.0,0.00022119,2]
[378056760,1754709034234,-151.0,0.00022119,2]
[378056761,1754709034244,-500.0,0.00022119,2]
[378056762,1754709034254,-500.0,0.00022119,2]
[378056763,1754709034264,-151.15347236,0.00022119,2]
[378056764,1754709034277,-500.0,0.00022119,2]
[378056765,1754709034286,-500.0,0.00022119,2]
[378056766,1754709034295,-500.0,0.00022119,2]
[378056767,1754709034304,-151.0,0.00022119,2]
[378056768,1754709034314,-151.0,0.00022119,2]
[378056769,1754709034324,-151.0,0.00022119,2]
[378056770,1754709034334,-151.0,0.00022119,2]
[378056771,1754709034344,-204.81,0.00022122,3]
[378056772,1754709034356,-170.68,0.00022122,3]
[378056773,1754709034365,-512.05,0.00022122,3]
[378056774,1754709034375,-429.75,0.00022122,3]
[378056775,1754709034386,-214.87,0.00022122,3]
[378056776,1754709034395,-644.64,0.00022122,3]
[378056777,1754709034405,-1000.0,0.00022131,2]
[378056778,1754709034415,-1000.0,0.00022131,2]
[378056779,1754709034425,-1000.0,0.00022131,2]
[378056780,1754709034434,-1000.0,0.00022131,2]
[378056781,1754709034445,-1000.0,0.00022131,2]
[378056782,1754709034456,-1000.0,0.00022131,2]
[378056783,1754709034465,-1018.67379154,0.00022131,2]
[378056784,1754709034475,-1304.6596475,0.00022132,2]
[378056785,1754709034484,-152.200665,0.00022132,7]
[378056786,1754709034494,-151.0,0.00022132,7]
[378056787,1754709034504,-372.933216,0.00022132,7]
[378056788,1754709034513,-50778.50805934,0.00022132,2]
[378056789,1754709034528,-1050.63318794,0.00022132,2]
[378056790,1754709034542,-897.53781879,0.00022132,2]
[378056791,1754709034553,-3189.73526677,0.00022132,2]
[378056792,1754709034710,263.84572137,0.00021208,2]
[378056824,1754709115160,666.0,0.00021101,2]
[378056825,1754709138573,208.659085,0.00013699,2]
[378056826,1754709138783,208.659085,0.00020187,2]
[378056828,1754709168816,173.80782396,0.00020032,2]
[378056829,1754709179464,219.17258053,0.000199,2]
[378056836,1754709222816,151.676585,0.00027765,30]
[378056837,1754709223009,151.676585,0.0002673,30]
[378056839,1754709254382,175.487875,0.00020866,2]
[378056841,1754709259108,3196.35540132,0.00020866,2]
[378056842,1754709259130,10951.69157788,0.00020866,2]
[378056847,1754709361676,211.17285135,0.000199,2]
[378056849,1754709470237,150.0,0.00020032,2]
[378056852,1754709538714,204.13375645,0.000199,2]
[378056854,1754709643714,151.45747123,0.0002,2]
[378056855,1754709647746,280.22,0.0002145,2]
[378056856,1754709661386,432.03091947,0.0002101,2]
[378056857,1754709663508,1728.1236779,0.0002101,2]
[378056858,1754709665993,3888.27827527,0.0002101,2]
[378056859,1754709668067,6905.58221688,0.0002101,2]
[378056860,1754709702439,151.676585,0.00027765,30]
[378056861,1754709702814,151.676585,0.0002673,30]
[378056863,1754709711172,204.13375626,0.000199,2]
[378056868,1754709771686,150.0,0.00020032,2]
[378056874,1754709881861,204.13375626,0.000199,2]
[378056878,1754709948513,5077.0,0.0002,10]
[378056883,1754709993509,522.50689673,0.00021013,2]
[378056884,1754710010514,442.81985231,0.00021013,2]
[378056885,1754710012770,796.71499201,0.00021013,2]
[378056886,1754710012793,972.79313783,0.00021013,2]
[378056889,1754710043328,187.793176,0.00013699,2]
[378056890,1754710043532,187.793176,0.00020187,2]
[378056891,1754710056535,204.13375626,0.000199,2]
[378056892,1754710062009,2725.3350295,0.00031659,30]
[378056893,1754710069918,163.0,0.0002145,7]
[378056894,1754710073715,10256.28660511,0.00018,2]
[378056895,1754710077795,3673.5385452,0.00018,2]
[378056896,1754710096871,333.21973416,0.00019205,5]
[378056897,1754710105804,271.10121356,0.00021,2]
[378056898,1754710108579,255.85292239,0.000176,2]
[378056899,1754710120318,151.73183863,0.0002,7]
[378056901,1754710129222,140667.98356518,0.0002489,30]
[378056911,1754710172941,175.487875,0.00020833,2]
[378056962,1754710232084,-249.0,0.00021748,2]
[378056965,1754710232095,-229.30103606,0.00021766,2]
[378056966,1754710232106,-134.07267041,0.00021766,2]
[378056967,1754710232116,-249.0,0.00021767,2]
[378056968,1754710232126,-249.0,0.00021768,2]
[378056969,1754710232135,-1331.78235033,0.00021769,2]
[378056970,1754710232144,-249.0,0.00021798,2]
[378056971,1754710232154,-195.42238974,0.000218,2]
[378056973,1754710232163,-1331.7823503,0.0002182,2]
[378056975,1754710232172,-2183.31810187,0.00021854,2]
[378056978,1754710232188,-500.0,0.00021855,2]
[378056980,1754710232203,-500.0,0.00021855,2]
[378056981,1754710232212,-151.0,0.00021855,2]
[378056982,1754710232223,-500.0,0.00021855,2]
[378056983,1754710232232,-151.0,0.00021855,2]
[378056984,1754710232242,-500.0,0.00021855,2]
[378056985,1754710232252,-151.0,0.00021855,2]
[378056986,1754710232263,-151.0,0.00021855,2]
[378056987,1754710232272,-151.0,0.00021855,2]
[378056988,1754710232282,-151.0,0.00021855,2]
[378056989,1754710232292,-151.0,0.00021855,2]
[378056990,1754710232303,-151.0,0.00021855,2]
[378056991,1754710232312,-500.0,0.00021855,2]
[378056992,1754710232322,-151.0,0.00021855,2]
[378056993,1754710232332,-151.0,0.00021855,2]
[378056994,1754710232343,-500.0,0.00021855,2]
[378056995,1754710232354,-151.0,0.00021855,2]
[378056996,1754710232364,-500.0,0.00021855,2]
[378056997,1754710232374,-151.0,0.00021855,2]
[378056998,1754710232383,-500.0,0.00021855,2]
[378056999,1754710232393,-151.0,0.00021855,2]
[378057000,1754710232402,-500.0,0.00021855,2]
[378057001,1754710232412,-151.0,0.00021855,2]
[378057002,1754710232422,-500.0,0.00021855,2]
[378057003,1754710232432,-500.0,0.00021855,2]
[378057004,1754710232442,-500.0,0.00021855,2]
[378057005,1754710232452,-500.0,0.00021855,2]
[378057006,1754710232463,-300.0,0.00021858,2]
[378057007,1754710232473,-300.0,0.00021858,2]
[378057008,1754710232483,-200.0,0.00021858,2]
[378057009,1754710232492,-300.0,0.00021858,2]
[378057010,1754710232502,-300.0,0.00021858,2]
[378057011,1754710232512,-1200.0,0.00021858,2]
[378057012,1754710232521,-249.0,0.00021859,2]
[378057013,1754710232531,-26043.42826723,0.00021859,2]
[378057014,1754710232544,-3096.11873078,0.00021859,2]
[378057015,1754710232569,-20860.45300199,0.00021859,2]
[378057016,1754710232579,-307.3,0.00021859,10]
[378057017,1754710232588,-1200.0,0.00021865,2]
[378057018,1754710232598,-500.0,0.00021867,2]
[378057019,1754710232607,-151.793343,0.00021869,2]
[378057020,1754710232617,-151.0,0.00021869,2]
[378057021,1754710232626,-151.0,0.00021869,2]
[378057022,1754710232636,-153.400648,0.00021869,2]
[378057023,1754710232645,-151.0,0.00021869,2]
[378057024,1754710232655,-153.500383,0.00021869,2]
[378057025,1754710232665,-151.740853,0.00021869,2]
[378057026,1754710232679,-151.0,0.00021869,2]
[378057027,1754710232688,-158.69992,0.00021869,2]
[378057028,1754710232698,-154.503295,0.00021869,2]
[378057029,1754710232708,-152.7405,0.00021869,2]
[378057030,1754710232718,-157.424043,0.00021869,2]
[378057031,1754710232728,-151.0,0.00021869,2]
[378057032,1754710232738,-817.376632,0.00021869,2]
[378057033,1754710232748,-817.376632,0.00021869,2]
[378057034,1754710232759,-153.482142,0.00021869,2]
[378057035,1754710232768,-540.753163,0.00021869,2]
[378057036,1754710232778,-540.753163,0.00021869,2]
[378057037,1754710232787,-151.0,0.00021869,2]
[378057038,1754710232796,-461.961372,0.00021869,2]
[378057039,1754710232806,-461.961372,0.00021869,2]
[378057040,1754710232815,-151.0,0.00021869,2]
[378057041,1754710232824,-151.0,0.00021869,2]
[378057042,1754710232834,-151.0,0.00021869,2]
[378057043,1754710232844,-151.0,0.00021869,2]
[378057044,1754710232853,-151.0,0.00021869,2]
[378057045,1754710232863,-11349.15144293,0.00021869,2]
[378057046,1754710232872,-503.66195297,0.00021873,2]
[378057047,1754710232882,-500.0,0.00021873,2]
[378057048,1754710232891,-500.0,0.00021873,2]
[378057049,1754710232901,-500.0,0.00021873,2]
[378057050,1754710232911,-2264.10087164,0.00021909,2]
[378057051,1754710232920,-461.73129545,0.00021917,2]
[378057052,1754710232929,-460.0,0.00021917,2]
[378057053,1754710232939,-460.0,0.00021917,2]
[378057054,1754710232948,-687.92,0.00021917,2]
[378057055,1754710232957,-460.0,0.00021917,2]
[378057056,1754710232967,-1207.16,0.00021917,2]
[378057057,1754710232977,-460.0,0.00021917,2]
[378057058,1754710232986,-460.0,0.00021917,2]
[378057059,1754710232995,-460.0,0.00021917,2]
[378057060,1754710233005,-460.0,0.00021917,2]
[378057061,1754710233014,-460.0,0.00021917,2]
[378057062,1754710233024,-463.3629394,0.00021917,2]
[378057063,1754710233033,-460.0,0.00021917,2]
[378057064,1754710233043,-474.48531775,0.00021917,2]
[378057065,1754710233054,-473.40848845,0.00021917,2]
[378057066,1754710233063,-460.0,0.00021917,2]
[378057067,1754710233073,-460.0,0.00021917,2]
[378057068,1754710233083,-460.0,0.00021917,2]
[378057069,1754710233094,-460.0,0.00021917,2]
[378057070,1754710233114,-460.0,0.00021917,2]
[378057071,1754710233127,-460.0,0.00021917,2]
[378057072,1754710233136,-460.0,0.00021917,2]
[378057073,1754710233146,-151.0,0.00021917,2]
[378057074,1754710233155,-460.0,0.00021917,2]
[378057075,1754710233165,-460.0,0.00021917,2]
[378057076,1754710233175,-151.0,0.00021917,2]
[378057077,1754710233185,-262.890075,0.00021917,2]
[378057078,1754710233195,-1341.03,0.00021917,2]
[378057079,1754710233204,-460.0,0.00021917,2]
[378057080,1754710233214,-186.12287103,0.00021917,2]
[378057081,1754710233223,-151.0,0.00021917,2]
[378057082,1754710233233,-460.0,0.00021917,2]
[378057083,1754710233243,-151.0,0.00021917,2]
[378057084,1754710233253,-3673.98,0.00021917,2]
[378057085,1754710233266,-460.0,0.00021917,2]
[378057086,1754710233276,-977.32,0.00021917,2]
[378057087,1754710233286,-460.0,0.00021917,2]
[378057088,1754710233296,-460.0,0.00021917,2]
[378057089,1754710233306,-460.0,0.00021917,2]
[378057090,1754710233316,-460.0,0.00021917,2]
[378057091,1754710233326,-151.0,0.00021938,7]
[378057092,1754710233335,-153.606308,0.00021938,7]
[378057093,1754710233346,-151.0,0.00021938,7]
[378057094,1754710233355,-205.048254,0.00021949,7]
[378057095,1754710233365,-151.0,0.0002195,7]
[378057096,1754710233374,-460.0,0.0002195,2]
[378057097,1754710233384,-460.0,0.0002195,2]
[378057098,1754710233394,-228.46112769,0.0002195,2]
[378057099,1754710233404,-540.753163,0.0002195,7]
[378057100,1754710233413,-460.0,0.0002195,2]
[378057101,1754710233424,-540.753163,0.0002195,7]
[378057102,1754710233434,-460.0,0.0002195,2]
[378057103,1754710233443,-288.823457,0.0002195,7]
[378057104,1754710233453,-460.0,0.0002195,2]
[378057105,1754710233463,-242.85158124,0.0002195,2]
[378057106,1754710233472,-169.99610687,0.0002195,2]
[378057107,1754710233482,-460.0,0.0002195,2]
[378057108,1754710233491,-151.0,0.0002195,7]
[378057109,1754710233500,-671.99,0.0002195,2]
[378057110,1754710233510,-460.0,0.0002195,2]
[378057111,1754710233520,-152.937178,0.00021951,7]
[378057112,1754710233529,-151.0,0.00021951,7]
[378057113,1754710233538,-151.0,0.00021951,7]
[378057114,1754710233548,-460.0,0.00021951,2]
[378057115,1754710233557,-151.0,0.00021951,7]
[378057116,1754710233567,-151.0,0.00021951,7]
[378057117,1754710233576,-460.0,0.00021951,2]
[378057118,1754710233586,-460.0,0.00021951,2]
[378057119,1754710233595,-157.152062,0.00021951,7]
[378057120,1754710233604,-460.0,0.00021951,2]
[378057121,1754710233613,-192.65349142,0.00021951,2]
[378057122,1754710233622,-460.0,0.00021951,2]
[378057123,1754710233631,-151.0,0.00021951,7]
[378057124,1754710233641,-460.0,0.00021951,2]
[378057125,1754710233650,-151.0,0.00021951,7]
[378057126,1754710233659,-151.0,0.00021951,7]
[378057127,1754710233671,-151.0,0.00021951,7]
[378057128,1754710233681,-151.0,0.00021951,7]
[378057129,1754710233691,-460.0,0.00021951,2]
[378057130,1754710233700,-460.0,0.00021951,2]
[378057131,1754710233709,-460.0,0.00021951,2]
[378057132,1754710233721,-460.0,0.00021951,2]